bitfinex-derivatives/quotes_SOLF0:USTF0_20250909
["timestamp","ask_amount","ask_price","bid_price","bid_amount"]
[1757451667124,9.52761151,216.31,216.24,7.01]
[1757451667323,7.04,216.31,216.24,7.01]
[1757451667825,7.04,216.31,216.24,9.49761151]
[1757451668015,17.46,216.32,216.24,9.49761151]
[1757451668217,7.04,216.31,216.24,9.49761151]
[1757451669218,7.04,216.31,216.24,2.48761151]
[1757451670331,7.04,216.31,216.23,7.01]
[1757451670332,7.04,216.29,216.25,0.03119851]
[1757451670730,7.04,216.29,216.22,7.01]
[1757451679835,7.26,216.27,216.23,0.03063218]
[1757451680036,2.52100569,216.28,216.23,0.03063218]
[1757451680334,7.26,216.27,216.23,0.03063218]
[1757451682938,2.51930083,216.28,216.23,0.03063218]
[1757451683440,7.26,216.27,216.23,0.03063218]
[1757451684239,7.26,216.25,216.23,0.03063218]
[1757451684434,2.48761151,216.26,216.23,0.03063218]
[1757451684840,7.26,216.25,216.23,0.03063218]
[1757451685039,0.03168932,216.28,216.23,0.03063218]
[1757451685338,7.26,216.27,216.23,0.03063218]
[1757451685737,30.01930083,216.28,216.23,0.03063218]
[1757451686036,7.26,216.27,216.23,0.03063218]
[1757451686341,30.01930083,216.28,216.23,0.03063218]
[1757451686540,7.26,216.27,216.23,0.03063218]
[1757451686741,30.01930083,216.28,216.23,0.03063218]
[1757451686939,7.26,216.27,216.23,0.03063218]
[1757451687138,30.01930083,216.28,216.23,0.03063218]
[1757451687542,7.26,216.27,216.23,0.03063218]
[1757451687743,30.01930083,216.28,216.23,0.03063218]
[1757451688138,7.26,216.27,216.23,0.03063218]
[1757451688740,30.01930083,216.28,216.23,0.03063218]
[1757451688935,7.26,216.27,216.23,0.03063218]
[1757451689444,2.51930083,216.28,216.23,0.03063218]
[1757451689935,7.26,216.27,216.23,0.03063218]
[1757451691137,2.51930083,216.28,216.23,0.03063218]
[1757451691333,7.26,216.27,216.23,0.03063218]
[1757451692143,2.51930083,216.28,216.23,0.03063218]
[1757451692743,2.51930083,216.28,216.23,7.20063218]
[1757451693841,7.26,216.27,216.23,7.20063218]
[1757451694346,2.51930083,216.28,216.23,7.20063218]
[1757451694742,7.26,216.27,216.23,7.20063218]
[1757451695143,7.26,216.27,216.23,0.03063218]
[1757451695343,7.26,216.27,216.23,7.20063218]
[1757451695544,2.51930083,216.28,216.23,7.20063218]
[1757451695845,7.26,216.27,216.23,7.20063218]
[1757451696449,2.51930083,216.28,216.23,7.20063218]
[1757451696641,2.51930083,216.28,216.23,0.03063218]
[1757451697241,7.26,216.27,216.23,0.03063218]
[1757451697544,36.91930083,216.28,216.23,0.03063218]
[1757451698046,62.69930083,216.28,216.23,0.03063218]
[1757451698448,84.69168932,216.28,216.23,0.03063218]
[1757451698649,7.26,216.27,216.23,0.03063218]
[1757451699050,84.69168932,216.28,216.23,0.03063218]
[1757451699556,7.26,216.27,216.23,0.03063218]
[1757451700051,0.03168932,216.28,216.23,7.20063218]
[1757451700854,7.26,216.27,216.23,7.20063218]
[1757451701049,0.03168932,216.28,216.23,7.20063218]
[1757451701643,7.26,216.27,216.23,7.20063218]
[1757451701842,0.03168932,216.28,216.23,7.20063218]
[1757451702355,7.26,216.27,216.23,7.20063218]
[1757451702555,0.03168932,216.28,216.23,7.20063218]
[1757451702854,7.26,216.27,216.23,7.20063218]
[1757451703054,0.03168932,216.28,216.23,7.20063218]
[1757451703254,7.26,216.27,216.23,7.20063218]
[1757451703459,0.03168932,216.28,216.23,7.20063218]
[1757451704056,7.6,216.27,216.23,7.20063218]
[1757451704453,0.03168932,216.28,216.23,7.20063218]
[1757451704954,7.6,216.27,216.23,7.20063218]
[1757451705457,0.03168932,216.28,216.23,7.20063218]
[1757451705650,7.6,216.27,216.23,7.20063218]
[1757451705846,0.03168932,216.28,216.24,7.44]
[1757451706254,7.6,216.27,216.24,7.44]
[1757451706853,0.03168932,216.28,216.24,7.44]
[1757451707049,7.6,216.27,216.24,7.44]
[1757451707957,7.6,216.26,216.24,7.44]
[1757451709858,113.22,216.27,216.23,0.03063218]
[1757451710257,7.6,216.26,216.23,0.03063218]
[1757451710453,113.22,216.27,216.23,0.03063218]
[1757451710860,7.6,216.26,216.23,0.03063218]
[1757451712160,7.6,216.24,216.23,0.03063218]
[1757451713560,120.82,216.24,216.23,0.03063218]
[1757451718562,7.6,216.24,216.23,0.03063218]
[1757451718867,120.8,216.24,216.23,0.03063218]
[1757451721670,125.98658794,216.24,216.23,0.03063218]
[1757451721968,125.98658794,216.24,216.14,7.44]
[1757451721969,129.00300725,216.24,216.14,7.44]
[1757451722168,7.6,216.2,216.14,7.44]
[1757451722368,120.8,216.19,216.1,7.44]
[1757451722569,113.2,216.18,216.1,7.44]
[1757451723069,0.02928417,216.16,216.1,7.44]
[1757451723270,113.2,216.15,216.1,7.44]
[1757451723569,113.2,216.15,216.07,3.89422948]
[1757451723864,113.2,216.15,216.08,7.44]
[1757451725371,0.02928417,216.16,216.08,7.44]
[1757451725672,15.98,216.15,216.08,7.44]
[1757451725965,16.34,216.14,216.08,7.44]
[1757451728876,7.6,216.15,216.08,7.44]
[1757451729175,27.46,216.14,216.08,7.44]
[1757451730669,7.6,216.15,216.08,7.44]
[1757451730875,19.52,216.15,216.08,7.44]
[1757451732571,19.52,216.15,216.02,3.87319988]
[1757451732778,7.6,216.08,215.98,7.44]
[1757451732978,23.5,216.07,215.98,7.44]
[1757451733273,0.03236929,216.05,215.98,7.44]
[1757451733979,7.63236929,216.05,215.98,7.44]
[1757451735377,7.63236929,216.05,215.95,7.38]
[1757451735378,7.6,216.03,215.95,7.38]
[1757451735876,0.03527344,216.01,215.95,7.38]
[1757451738576,7.6,216.0,215.95,7.38]
[1757451738783,7.63527344,216.01,215.95,7.38]
[1757451742986,3.89422948,215.98,215.86,7.38]
[1757451743186,7.6,215.97,215.86,7.38]
[1757451743387,11.49422948,215.97,215.86,7.38]
[1757451743585,0.02961238,215.94,215.86,7.38]
[1757451744482,7.62961238,215.94,215.86,7.38]
[1757451746092,11.52384186,215.94,215.82,7.38]
[1757451746283,3.89422948,215.91,215.82,7.38]
[1757451746485,7.6,215.9,215.82,7.38]
[1757451746982,0.0349989,215.88,215.82,7.38]
[1757451748089,7.6349989,215.88,215.82,7.38]
[1757451750994,11.52922838,215.88,215.77,7.38]
[1757451751293,7.6349989,215.88,215.77,7.38]
[1757451757796,58.3949989,215.88,215.77,7.38]
[1757451759898,7.6349989,215.88,215.77,7.38]
[1757451760297,2.50147729,215.87,215.79,2.50147729]
[1757451760498,2.50147729,215.87,215.8,7.38]
[1757451760998,0.03532789,215.86,215.8,7.38]
[1757451763294,0.03532789,215.86,215.81,2.50147729]
[1757451763492,0.03532789,215.86,215.85,9.88147729]
[1757451768203,7.21,215.96,215.86,7.49]
[1757451768396,7.21,215.96,215.9,2.50147729]
[1757451770903,7.21,215.99,215.92,2.50147729]
[1757451771103,7.21,215.99,215.95,7.49]
[1757451771606,7.21,216.0,215.95,7.49]
[1757451771805,311.14,216.01,215.95,7.49]
[1757451772100,311.14,216.01,215.92,9.99147729]
[1757451772295,7.21,216.0,215.92,9.99147729]
[1757451773602,7.21,216.0,215.94,2.50147729]
[1757451774108,311.14,216.01,215.95,7.49]
[1757451774507,318.35,216.01,215.95,7.49]
[1757451776608,431.65,216.01,215.95,7.49]
[1757451778207,431.63,216.01,215.95,7.49]
[1757451782115,9.71147729,216.0,215.91,7.49]
[1757451782329,7.21,215.97,215.89,2.50147729]
[1757451782520,7.21,215.95,215.89,2.50147729]
[1757451786628,120.49,215.94,215.9,7.49]
[1757451787130,7.21,215.94,215.9,7.49]
[1757451787332,7.21,215.96,215.9,7.49]
[1757451787533,113.28,215.95,215.89,2.50147729]
[1757451788134,113.28,215.94,215.89,2.50147729]
[1757451788334,7.21,215.96,215.91,2.50147729]
[1757451788535,7.21,215.97,215.94,7.49]
[1757451788733,313.64147729,216.01,215.95,2.50147729]
[1757451788734,318.35,216.01,215.95,2.50147729]
[1757451788935,318.35,216.01,215.95,9.99147729]
[1757451789130,431.63,216.01,215.95,9.99147729]
[1757451790030,318.35,216.01,215.95,9.99147729]
[1757451790334,431.63,216.01,215.95,9.99147729]
[1757451793139,431.61,216.01,215.95,9.99147729]
[1757451794239,318.35,216.01,215.95,9.99147729]
[1757451794537,431.61,216.01,215.95,9.99147729]
[1757451795639,120.47,216.01,215.97,2.50147729]
[1757451795839,120.47,216.01,215.97,9.58147729]
[1757451796238,113.26,216.01,215.97,2.50147729]
[1757451796640,7.74,216.0,215.97,2.50147729]
[1757451796833,113.26,216.01,215.97,2.50147729]
[1757451798137,113.26,216.02,215.97,2.50147729]
[1757451798341,7.74,216.01,215.97,2.50147729]
[1757451798543,113.26,216.02,215.97,2.50147729]
[1757451798745,7.74,216.01,215.97,2.50147729]
[1757451798944,113.26,216.02,215.97,2.50147729]
[1757451799644,7.74,216.01,215.97,2.50147729]
[1757451799847,113.26,216.02,215.97,2.50147729]
[1757451800045,7.74,216.01,215.97,2.50147729]
[1757451800446,113.26,216.02,215.97,2.50147729]
[1757451800741,7.74,216.01,215.97,2.50147729]
[1757451800947,113.26,216.02,215.97,2.50147729]
[1757451801148,7.74,216.01,215.97,2.50147729]
[1757451801346,113.26,216.02,215.97,2.50147729]
[1757451801550,7.74,216.01,215.97,2.50147729]
[1757451801847,113.26,216.02,215.97,2.50147729]
[1757451802248,7.74,216.01,215.97,2.50147729]
[1757451802449,113.26,216.02,215.97,2.50147729]
[1757451802850,7.74,216.04,215.97,2.50147729]
[1757451803051,7.74,216.02,215.97,2.50147729]
[1757451803349,120.98,216.02,215.97,2.50147729]
[1757451803550,7.74,216.02,215.97,2.50147729]
[1757451803750,7.74,216.01,215.97,2.50147729]
[1757451803950,113.24,216.02,215.97,2.50147729]
[1757451804351,120.98,216.03,215.97,2.50147729]
[1757451808354,7.74,216.03,215.97,2.50147729]
[1757451808555,113.24,216.02,215.97,2.50147729]
[1757451809154,7.74,216.01,215.97,2.53588837]
[1757451809357,113.24,216.02,215.97,2.53588837]
[1757451809548,7.74,216.01,215.97,2.53588837]
[1757451809957,113.24,216.02,215.97,2.53588837]
[1757451810151,7.74,216.01,215.97,2.53588837]
[1757451810349,7.74,216.03,215.97,2.53588837]
[1757451810556,7.74,216.02,215.99,9.58147729]
[1757451810751,62.32,216.05,216.01,2.50147729]
[1757451811357,62.32,216.05,216.01,2.53329874]
[1757451811555,7.74,216.04,216.01,2.53329874]
[1757451811757,62.32,216.05,216.01,0.03182145]
[1757451811961,7.74,216.04,216.01,0.03182145]
[1757451812161,62.32,216.05,216.01,0.03182145]
[1757451812959,7.74,216.04,216.01,0.03182145]
[1757451813160,62.32,216.05,216.01,0.03182145]
[1757451814160,7.74,216.04,216.01,0.03182145]
[1757451814462,62.32,216.05,216.01,0.03182145]
[1757451815969,7.74,216.04,216.01,0.03182145]
[1757451823969,7.49,216.05,216.01,0.03182145]
[1757451825973,113.18,216.06,216.01,0.03182145]
[1757451826373,7.49,216.05,216.01,0.03182145]
[1757451828869,113.18,216.06,216.01,0.03182145]
[1757451829070,7.49,216.05,216.01,0.03182145]
[1757451829776,113.18,216.06,216.01,0.03182145]
[1757451829970,7.49,216.05,216.01,0.03182145]
[1757451831176,120.67,216.05,216.01,0.03182145]
[1757451831678,7.49,216.05,216.01,0.03182145]
[1757451831975,7.49,216.04,216.01,0.03182145]
[1757451832369,113.18,216.05,216.01,0.03182145]
[1757451832672,12.68302966,216.1,216.01,7.34182145]
[1757451832881,120.67,216.1,216.02,3.90242448]
[1757451833072,7.49,216.1,216.03,7.31]
[1757451833472,125.86302966,216.13,216.03,7.31]
[1757451834074,12.68302966,216.13,216.06,7.34324918]
[1757451834379,120.65,216.13,216.06,7.34324918]
[1757451835880,7.49,216.13,216.06,7.34324918]
[1757451836080,120.65,216.13,216.06,7.34324918]
[1757451839279,7.49,216.15,216.08,3.90242448]
[1757451839479,7.49,216.18,216.11,3.90242448]
[1757451839779,7.49,216.18,216.12,7.3445663]
[1757451840485,43.9,216.19,216.12,7.3445663]
[1757451840779,7.49,216.18,216.12,0.0345663]
[1757451843785,11.39242448,216.18,216.12,0.0345663]
[1757451846693,16.58545414,216.18,216.12,0.0345663]
[1757451847496,11.39242448,216.18,216.12,0.0345663]
[1757451848193,16.58545414,216.18,216.12,0.0345663]
[1757451849397,7.49,216.14,216.12,0.0345663]
[1757451849796,3.90242448,216.12,215.99,7.31]
[1757451849996,7.49,216.1,215.99,7.31]
[1757451850995,0.03334173,216.07,216.02,7.31]
[1757451851201,0.03334173,216.07,216.05,7.31]
[1757451851699,0.03334173,216.07,216.04,3.90242448]
[1757451852501,0.03334173,216.07,216.04,4.36242448]
[1757451853099,0.03334173,216.07,216.05,7.31]
[1757451853396,0.03334173,216.07,216.04,4.36242448]
[1757451854599,0.03334173,216.07,216.05,7.33]
[1757451854800,0.03334173,216.07,216.04,4.36242448]
[1757451856106,0.03334173,216.07,216.05,7.33]
[1757451856399,0.03334173,216.07,216.04,4.36242448]
[1757451856998,0.03334173,216.07,216.05,7.33]
[1757451857301,0.03334173,216.07,216.04,4.36242448]
[1757451857508,0.03334173,216.07,216.05,7.33]
[1757451857896,0.03334173,216.07,216.04,4.36242448]
[1757451858106,0.03334173,216.07,216.05,7.33]
[1757451858701,0.03334173,216.07,216.04,4.36242448]
[1757451859899,0.03334173,216.07,216.05,7.33]
[1757451860105,7.54,216.16,216.05,7.33]
[1757451860305,15.4,216.19,216.1,7.33]
[1757451861606,15.4,216.19,216.12,0.03144612]
[1757451864204,7.54,216.19,216.12,7.36144612]
[1757451866710,7.54,216.19,216.12,0.03144612]
[1757451874413,7.54,216.19,216.13,7.33]
[1757451874620,7.54,216.22,216.14,7.33]
[1757451875413,7.54,216.22,216.16,0.02930158]
[1757451875815,7.54,216.22,216.16,11.26172606]
[1757451876516,7.54,216.22,216.16,3.93172606]
[1757451877422,7.54,216.25,216.17,7.33]
[1757451878018,7.54,216.25,216.19,0.03136292]
[1757451885929,7.37,216.27,216.2,2.49281506]
[1757451894742,7.37,216.27,216.2,9.64281506]
[1757451895141,113.02,216.28,216.2,9.64281506]
[1757451895340,7.37,216.27,216.2,9.64281506]
[1757451895541,113.02,216.28,216.2,9.64281506]
[1757451895841,7.37,216.27,216.2,9.64281506]
[1757451897545,7.37,216.27,216.2,2.49281506]
[1757451899240,120.37,216.27,216.2,9.64281506]
[1757451900040,113.0,216.27,216.2,9.64281506]
[1757451900648,7.37,216.26,216.19,0.03136292]
[1757451906860,7.37,216.26,216.2,9.64281506]
[1757451907067,5.19302966,216.31,216.25,7.15]
[1757451907362,62.52302966,216.32,216.26,2.49281506]
[1757451907954,55.15302966,216.32,216.27,0.0314342]
[1757451908454,55.15302966,216.32,216.28,2.49281506]
[1757451908455,7.37,216.31,216.28,2.49281506]
[1757451909164,7.37,216.31,216.28,9.64281506]
[1757451912361,112.98,216.34,216.28,2.49281506]
[1757451912662,7.37,216.33,216.27,0.0314342]
[1757451914965,12.55302966,216.37,216.33,7.24]
[1757451915164,7.36,216.38,216.29,7.24]
[1757451915668,7.36,216.38,216.32,2.49281506]
[1757451917965,7.36,216.38,216.31,0.02964439]
[1757451918271,9.85281506,216.38,216.31,0.02964439]
[1757451918871,7.36,216.38,216.31,0.02964439]
[1757451919170,9.85281506,216.38,216.31,0.02964439]
[1757451920169,112.94,216.37,216.31,0.02964439]
[1757451920570,5.19302966,216.42,216.35,7.24]
[1757451920770,7.36,216.43,216.38,2.49281506]
[1757451921071,7.74300725,216.48,216.4,2.49281506]
[1757451921072,2.49281506,216.48,216.4,2.49281506]
[1757451921272,7.36,216.47,216.4,2.49281506]
[1757451921664,7.36,216.47,216.41,0.03149589]
[1757451926475,2.49281506,216.46,216.41,0.03149589]
[1757451926679,7.36,216.45,216.41,0.03149589]
[1757451927079,2.49281506,216.46,216.41,0.03149589]
[1757451927279,7.36,216.45,216.41,0.03149589]
[1757451927474,2.49281506,216.46,216.41,0.03149589]
[1757451927673,7.36,216.45,216.41,0.03149589]
[1757451928681,2.49281506,216.46,216.41,0.03149589]
[1757451929082,7.36,216.45,216.41,0.03149589]
[1757451929585,2.49281506,216.46,216.41,0.03149589]
[1757451929779,7.36,216.45,216.41,0.03149589]
[1757451929976,2.49281506,216.46,216.41,0.03149589]
[1757451930486,7.36,216.45,216.41,0.03149589]
[1757451930680,2.49281506,216.46,216.41,0.03149589]
[1757451931683,7.36,216.45,216.41,0.03149589]
[1757451931877,2.49281506,216.46,216.41,0.03149589]
[1757451932074,7.36,216.45,216.41,0.03149589]
[1757451932677,7.36,216.5,216.41,0.03149589]
[1757451932879,2.49281506,216.46,216.41,0.03149589]
[1757451933084,7.36,216.45,216.41,0.03149589]
[1757451933584,2.49281506,216.46,216.41,0.03149589]
[1757451934081,7.36,216.48,216.41,2.52431095]
[1757451936488,7.36,216.48,216.41,0.03149589]
[1757451936878,7.36,216.46,216.41,0.03149589]
[1757451937078,7.36,216.44,216.41,0.03149589]
[1757451937485,0.46,216.43,216.18,21.69116672]
[1757451937790,2.49281506,216.25,216.22,7.24]
[1757451937983,2.49281506,216.25,216.07,16.36]
[1757451938179,2.49281506,216.23,216.15,7.24]
[1757451938377,2.49281506,216.21,216.15,7.24]
[1757451938586,7.36,216.27,216.15,7.24]
[1757451938587,2.49281506,216.19,216.15,7.24]
[1757451938786,2.49281506,216.19,216.12,7.24]
[1757451939182,2.49281506,216.17,216.12,7.24]
[1757451939382,2.49281506,216.17,216.1,7.24]
[1757451940886,0.03379271,216.18,216.11,2.49281506]
[1757451941087,0.03379271,216.18,216.12,7.24]
[1757451942585,0.03379271,216.18,216.12,7.24]
[1757451943480,0.03379271,216.18,216.13,2.49281506]
[1757451943684,0.03379271,216.18,216.14,7.35]
[1757451944188,0.03379271,216.18,216.13,2.49281506]
[1757451944382,7.55379271,216.18,216.13,7.35]
[1757451944787,7.55379271,216.18,216.12,7.35]
[1757451945893,0.03379271,216.18,216.16,7.35]
[1757451946090,0.03379271,216.18,216.17,9.84281506]
[1757451946391,0.03379271,216.18,216.17,7.35]
[1757451947887,10.02,216.31,216.17,7.81]
[1757451947888,7.52,216.3,216.17,7.81]
[1757451948088,7.52,216.3,216.18,7.35]
[1757451949390,7.52,216.3,216.23,7.35]
[1757451953297,7.52,216.37,216.24,7.35]
[1757451953596,7.52,216.37,216.27,7.35]
[1757451953899,7.52,216.41,216.29,7.35]
[1757451954397,7.52,216.41,216.33,0.03344759]
[1757451957294,3.8945258,216.4,216.33,0.03344759]
[1757451957497,7.52,216.39,216.33,0.03344759]
[1757451958502,7.52,216.36,216.33,0.03344759]
[1757451958800,3.8945258,216.37,216.33,0.03344759]
[1757451958995,7.52,216.36,216.33,0.03344759]
[1757451959193,3.8945258,216.37,216.33,0.03344759]
[1757451959591,7.52,216.36,216.33,0.03344759]
[1757451960291,3.8945258,216.37,216.33,0.03344759]
[1757451961495,7.52,216.36,216.33,0.03344759]
[1757451961899,7.52,216.39,216.29,7.35]
[1757451962201,7.52,216.39,216.32,0.02936561]
[1757451967900,7.52,216.36,216.32,0.02936561]
[1757451972601,3.8945258,216.39,216.32,0.02936561]
[1757451972802,7.52,216.38,216.32,0.02936561]
[1757451974104,3.8945258,216.36,216.32,0.02936561]
[1757451974304,7.07,216.35,216.32,0.02936561]
[1757451975506,3.8945258,216.33,216.32,0.02936561]
[1757451975707,10.9645258,216.33,216.32,0.02936561]
[1757451976209,11.4245258,216.33,216.2,7.39]
[1757451976399,3.8945258,216.26,216.2,7.39]
[1757451977406,7.10431853,216.25,216.2,7.39]
[1757451978203,7.07,216.24,216.2,7.39]
[1757451979907,7.07,216.24,216.12,3.8945258]
[1757451979908,0.03431853,216.25,216.13,7.39]
[1757451980410,3.8945258,216.26,216.13,7.39]
[1757451980610,0.0296424,216.21,216.13,7.39]
[1757451991708,7.0996424,216.21,216.13,7.39]
[1757451992213,0.0296424,216.21,216.13,7.39]
[1757451997314,7.07,216.2,216.13,7.39]
[1757451997812,0.0296424,216.21,216.13,7.39]
[1757452016230,7.47,216.19,216.13,7.39]
[1757452017430,7.47,216.17,216.13,7.39]
[1757452020730,7.47,216.17,216.11,7.63]
[1757452021331,0.03412077,216.16,216.1,2.49360405]
[1757452021532,0.03412077,216.16,216.11,7.63]
[1757452021933,0.03412077,216.16,216.1,2.49360405]
[1757452022234,0.03412077,216.16,216.11,7.63]
[1757452022728,0.03412077,216.16,216.1,2.49360405]
[1757452023434,0.03412077,216.16,216.11,7.63]
[1757452023631,0.03412077,216.16,216.1,2.49360405]
[1757452023831,0.03412077,216.16,216.11,7.63]
[1757452024334,0.03412077,216.16,216.1,2.49360405]
[1757452024638,5.19302966,216.25,216.14,7.63]
[1757452024831,2.49360405,216.25,216.17,7.63]
[1757452026137,2.49360405,216.25,216.2,7.63]
[1757452026338,2.49360405,216.25,216.19,0.03262145]
[1757452026939,2.49360405,216.25,216.19,7.66262145]
[1757452032438,2.49360405,216.23,216.19,7.66262145]
[1757452032638,7.47,216.22,216.19,0.03262145]
[1757452033439,7.47,216.22,216.19,7.66262145]
[1757452033641,7.47,216.22,216.19,7.68262145]
[1757452038146,12.51302966,216.26,216.2,7.65]
[1757452038341,7.32,216.26,216.2,7.65]
[1757452041147,2.49360405,216.28,216.2,7.65]
[1757452042248,2.49360405,216.28,216.21,2.49360405]
[1757452042746,2.49360405,216.28,216.22,7.65]
[1757452043842,7.32,216.3,216.22,7.65]
[1757452044048,2.49360405,216.31,216.24,7.65]
[1757452044348,9.81360405,216.33,216.26,7.65]
[1757452045249,7.32,216.33,216.26,7.65]
[1757452045446,2.49360405,216.35,216.27,2.49360405]
[1757452045753,2.49360405,216.35,216.28,7.65]
[1757452046353,2.49360405,216.35,216.29,0.03061218]
[1757452048350,7.32,216.36,216.3,7.65]
[1757452048745,7.32,216.37,216.3,7.65]
[1757452048955,2.49360405,216.36,216.3,7.65]
[1757452050353,7.32,216.37,216.3,7.65]
[1757452050653,2.49360405,216.36,216.3,7.65]
[1757452058052,9.81360405,216.36,216.3,7.65]
[1757452059061,7.32,216.36,216.3,10.14360405]
[1757452060064,2.49360405,216.38,216.31,7.65]
[1757452061971,7.32,216.37,216.31,7.65]
[1757452081685,7.32,216.37,216.29,0.03061218]
[1757452082185,7.32,216.37,216.3,7.61]
[1757452082386,7.29,216.41,216.31,7.61]
[1757452082986,7.29,216.41,216.35,7.61]
[1757452083783,7.29,216.43,216.36,0.03268999]
[1757452086288,7.29,216.43,216.37,7.61]
[1757452100894,70.45073142,216.46,216.37,7.61]
[1757452103302,7.16,216.46,216.37,7.61]
[1757452104705,7.16,216.46,216.39,3.89043917]
[1757452104905,7.16,216.46,216.4,7.2]
[1757452105307,7.16,216.46,216.42,7.2]
[1757452105509,7.16,216.46,216.41,0.0302401]
[1757452105707,11.05043917,216.57,216.43,7.2]
[1757452105907,7.16,216.55,216.43,7.2]
[1757452106307,7.16,216.55,216.47,0.02993152]
[1757452107800,7.16,216.55,216.47,7.22993152]
[1757452108811,7.16,216.55,216.47,0.02993152]
[1757452116513,7.16,216.55,216.47,7.22993152]
[1757452132324,2.48643238,216.54,216.47,7.22993152]
[1757452132524,7.71,216.53,216.47,7.22993152]
[1757452133126,7.71,216.51,216.47,0.02993152]
[1757452133322,2.48643238,216.52,216.47,0.02993152]
[1757452133619,7.71,216.51,216.47,0.02993152]
[1757452134026,2.48643238,216.52,216.47,0.02993152]
[1757452134426,7.71,216.51,216.47,0.02993152]
[1757452134628,2.48643238,216.52,216.47,0.02993152]
[1757452135328,2.48643238,216.5,216.47,0.02993152]
[1757452135718,7.71,216.49,216.47,0.02993152]
[1757452135924,2.48643238,216.5,216.47,0.02993152]
[1757452136125,7.71,216.49,216.47,0.02993152]
[1757452136322,2.48643238,216.5,216.47,0.02993152]
[1757452137027,7.71,216.49,216.47,0.02993152]
[1757452137425,2.48643238,216.52,216.47,7.42993152]
[1757452138123,7.71,216.51,216.47,7.42993152]
[1757452138329,2.48643238,216.52,216.47,7.42993152]
[1757452138524,7.71,216.51,216.47,7.42993152]
[1757452138729,2.48643238,216.52,216.47,7.42993152]
[1757452138924,7.71,216.55,216.48,7.4]
[1757452139120,2.48643238,216.54,216.48,7.4]
[1757452139725,7.71,216.53,216.48,7.4]
[1757452140522,2.48643238,216.54,216.48,7.4]
[1757452140825,7.71,216.53,216.48,7.4]
[1757452141029,2.48643238,216.54,216.48,7.4]
[1757452141429,7.71,216.53,216.48,7.4]
[1757452141629,2.48643238,216.56,216.48,7.4]
[1757452142329,7.71,216.57,216.51,7.4]
[1757452143030,7.71,216.57,216.53,7.4]
[1757452143727,7.71,216.58,216.52,0.03097753]
[1757452144331,7.71,216.56,216.52,7.43097753]
[1757452144525,7.71,216.57,216.52,0.03097753]
[1757452144728,2.48643238,216.56,216.52,0.03097753]
[1757452145130,7.71,216.55,216.52,0.03097753]
[1757452145728,2.48643238,216.56,216.52,0.03097753]
[1757452145933,7.71,216.55,216.52,0.03097753]
[1757452146334,2.48643238,216.56,216.52,0.03097753]
[1757452146531,7.71,216.55,216.52,0.03097753]
[1757452148829,2.48643238,216.56,216.52,0.03097753]
[1757452149025,7.71,216.55,216.52,0.03097753]
[1757452149434,2.48643238,216.56,216.52,0.03097753]
[1757452149831,7.71,216.55,216.52,0.03097753]
[1757452150134,2.48643238,216.56,216.52,0.03097753]
[1757452150530,7.71,216.55,216.52,0.03097753]
[1757452150837,7.71,216.55,216.52,7.43097753]
[1757452151234,2.48643238,216.57,216.52,7.43097753]
[1757452151734,7.71,216.56,216.52,7.43097753]
[1757452151935,2.48643238,216.57,216.52,7.43097753]
[1757452152528,2.48643238,216.57,216.52,0.03097753]
[1757452152937,7.71,216.56,216.52,0.03097753]
[1757452153627,2.48643238,216.57,216.52,0.03097753]
[1757452154227,7.39,216.56,216.52,0.03097753]
[1757452154733,2.48643238,216.57,216.52,0.03097753]
[1757452154941,7.39,216.57,216.52,0.03097753]
[1757452155134,5.19302966,216.58,216.52,0.03097753]